fUSD/lending_fUSD_20260405
["ID","MTS","AMOUNT","RATE_DAILY","PERIOD"]
[419847313,1775417448091,-150.0,0.00015188,2]
[419847314,1775417448100,-150.0,0.00015191,2]
[419847315,1775417448110,-500.0,0.00015199,2]
[419847316,1775417448119,-322.47111,0.000152,2]
[419847317,1775417448128,-150.0,0.000152,2]
[419847318,1775417448137,-150.0,0.000152,2]
[419847319,1775417448147,-150.0,0.000152,2]
[419847320,1775417448156,-150.0,0.000152,2]
[419847321,1775417448166,-150.0,0.000152,2]
[419847322,1775417448175,-150.0,0.000152,2]
[419847323,1775417448184,-150.0,0.000152,2]
[419847324,1775417448193,-150.0,0.00015209,2]
[419847325,1775417448202,-150.0,0.00015212,2]
[419847326,1775417448212,-150.0,0.00015215,2]
[419847327,1775417448223,-150.0,0.00015215,2]
[419847328,1775417448232,-150.0,0.00015216,2]
[419847329,1775417448241,-150.0,0.00015222,2]
[419847330,1775417448250,-150.0,0.00015228,2]
[419847331,1775417448259,-150.0,0.00015228,2]
[419847332,1775417448269,-9552.16786547,0.0001523,2]
[419847333,1775417448278,-500.0,0.0001523,2]
[419847334,1775417448287,-151.0,0.0001523,2]
[419847335,1775417448297,-594.86,0.00015232,2]
[419847336,1775417448306,-500.0,0.00015232,2]
[419847337,1775417448315,-500.0,0.00015232,2]
[419847338,1775417448325,-500.0,0.00015232,2]
[419847339,1775417448334,-500.0,0.00015232,2]
[419847340,1775417448343,-584.32,0.00015232,2]
[419847341,1775417448353,-500.0,0.00015232,2]
[419847342,1775417448364,-500.0,0.00015232,2]
[419847343,1775417448373,-500.0,0.00015232,2]
[419847344,1775417448382,-586.9,0.00015232,2]
[419847345,1775417448392,-500.0,0.00015232,2]
[419847346,1775417448401,-500.0,0.00015232,2]
[419847347,1775417448410,-1270.261854,0.00015232,2]
[419847348,1775417448419,-1270.261854,0.00015232,2]
[419847349,1775417448428,-1270.261854,0.00015232,2]
[419847350,1775417448438,-1270.261854,0.00015232,2]
[419847351,1775417448447,-652.815241,0.00015232,2]
[419847352,1775417448456,-652.815241,0.00015232,2]
[419847353,1775417448465,-652.815241,0.00015232,2]
[419847354,1775417448475,-652.815241,0.00015232,2]
[419847355,1775417448484,-539.252182,0.00015232,2]
[419847356,1775417448493,-539.252182,0.00015232,2]
[419847357,1775417448502,-539.252182,0.00015232,2]
[419847358,1775417448513,-539.252182,0.00015232,2]
[419847359,1775417448524,-151.0,0.00015232,2]
[419847360,1775417448533,-151.0,0.00015232,2]
[419847361,1775417448542,-151.0,0.00015232,2]
[419847362,1775417448551,-209.75164,0.00015232,2]
[419847363,1775417448560,-30172.71823857,0.00015232,2]
[419847364,1775417448569,-30603.67149402,0.00015232,2]
[419847365,1775417450938,-400.34854146,0.00015232,2]
[419847366,1775417451046,-153.46293022,0.00012794,2]
[419847367,1775417451056,-229.99115835,0.00015232,2]
[419847368,1775417451076,-1414.65637329,0.00015232,2]
[419847369,1775417451087,-5525.64516341,0.00015232,2]
[419847370,1775417451097,-150.0,0.00015236,2]
[419847371,1775417451107,-1000.0,0.00015239,2]
[419847372,1775417451116,-150.0,0.00015244,2]
[419847373,1775417451127,-150.0,0.00015245,2]
[419847374,1775417451137,-150.0,0.00015245,2]
[419847375,1775417451148,-150.0,0.00015247,2]
[419847376,1775417451158,-150.0,0.00015247,2]
[419847377,1775417451168,-1000.0,0.00015251,2]
[419847378,1775417451179,-150.0,0.0001526,2]
[419847379,1775417451189,-150.0,0.00015266,2]
[419847380,1775417451200,-150.0,0.00015267,2]
[419847381,1775417451209,-150.0,0.00015273,2]
[419847382,1775417451219,-150.0,0.00015275,2]
[419847383,1775417451228,-150.0,0.00015275,2]
[419847384,1775417451238,-150.0,0.00015278,2]
[419847385,1775417451248,-150.0,0.00015283,2]
[419847386,1775417451258,-150.0,0.00015284,2]
[419847387,1775417451267,-1000.0,0.00015284,2]
[419847388,1775417451277,-150.0,0.00015285,2]
[419847389,1775417451288,-9905.5980765,0.00015285,2]
[419847390,1775417451298,-500.0,0.00015285,2]
[419847391,1775417451307,-151.0,0.00015285,2]
[419847392,1775417451317,-150.0,0.00015289,2]
[419847393,1775417451326,-948.1,0.00015298,2]
[419847394,1775417451335,-855.78,0.00015298,2]
[419847395,1775417451345,-500.0,0.00015298,2]
[419847396,1775417451354,-150.0,0.000153,2]
[419847397,1775417451363,-150.0,0.00015304,2]
[419847398,1775417451372,-205.6183407,0.00015304,5]
[419847399,1775417451382,-10000.0,0.00015305,2]
[419847400,1775417451393,-150.0,0.00015306,2]
[419847401,1775417451403,-150.0,0.00015306,2]
[419847402,1775417451413,-150.0,0.00015307,2]
[419847403,1775417451422,-150.0,0.0001531,2]
[419847404,1775417451431,-150.0,0.00015311,2]
[419847405,1775417451440,-584.03992141,0.00015314,2]
[419847406,1775417451450,-150.0,0.00015322,2]
[419847407,1775417451459,-903.49,0.00015323,2]
[419847408,1775417451469,-1000.0,0.00015331,2]
[419847409,1775417451478,-150.0,0.00015331,2]
[419847410,1775417451487,-150.0,0.00015333,2]
[419847411,1775417451497,-150.0,0.00015336,2]
[419847412,1775417451507,-150.0,0.00015336,2]
[419847413,1775417451517,-150.0,0.00015338,2]
[419847414,1775417451528,-500.0,0.00015339,2]
[419847415,1775417451539,-10272.10520533,0.0001534,2]
[419847416,1775417451548,-500.0,0.0001534,2]
[419847417,1775417451557,-151.0,0.0001534,2]
[419847418,1775417451566,-150.0,0.00015341,2]
[419847419,1775417451576,-150.0,0.00015341,2]
[419847420,1775417451585,-500.0,0.00015343,2]
[419847421,1775417451594,-150.0,0.00015345,2]
[419847422,1775417451603,-150.0,0.00015355,2]
[419847423,1775417451613,-150.0,0.00015356,2]
[419847424,1775417451621,-150.0,0.0001536,2]
[419847425,1775417451631,-150.0,0.00015366,2]
[419847426,1775417451640,-150.0,0.00015366,2]
[419847427,1775417451650,-150.0,0.00015373,2]
[419847428,1775417451659,-150.0,0.00015378,2]
[419847429,1775417451668,-150.0,0.00015379,2]
[419847430,1775417451678,-150.0,0.00015379,2]
[419847431,1775417451687,-1000.0,0.00015386,2]
[419847432,1775417451696,-441.91,0.00015387,2]
[419847433,1775417451706,-478.15,0.00015387,2]
[419847434,1775417451715,-285.47,0.00015387,2]
[419847435,1775417451724,-150.0,0.00015393,2]
[419847436,1775417451733,-587.0,0.00015394,2]
[419847437,1775417451742,-10652.17309792,0.00015395,2]
[419847438,1775417451752,-500.0,0.00015395,2]
[419847439,1775417451761,-151.0,0.00015395,2]
[419847440,1775417451770,-150.0,0.00015396,2]
[419847441,1775417451779,-150.0,0.00015396,2]
[419847442,1775417451788,-150.0,0.00015398,2]
[419847443,1775417451796,-1399.77259342,0.00015399,2]
[419847444,1775417451806,-150.0,0.000154,2]
[419847445,1775417451814,-150.0,0.000154,2]
[419847446,1775417451824,-150.0,0.00015403,2]
[419847447,1775417451833,-150.0,0.00015404,2]
[419847448,1775417451842,-8422.99193755,0.00015406,2]
[419847449,1775417451851,-150.0,0.00015416,2]
[419847450,1775417451861,-150.0,0.00015418,2]
[419847451,1775417451870,-1000.0,0.0001542,2]
[419847452,1775417451879,-150.0,0.00015422,2]
[419847453,1775417451889,-150.0,0.00015426,2]
[419847454,1775417451898,-150.0,0.00015426,2]
[419847455,1775417451908,-1000.0,0.00015427,2]
[419847456,1775417451917,-1000.0,0.00015427,2]
[419847457,1775417451926,-150.0,0.00015427,2]
[419847458,1775417451936,-150.0,0.00015435,2]
[419847459,1775417451945,-150.0,0.00015435,2]
[419847460,1775417451954,-150.0,0.00015435,2]
[419847461,1775417451963,-150.0,0.00015444,2]
[419847462,1775417451972,-150.0,0.00015448,2]
[419847463,1775417451982,-350.0,0.00015449,2]
[419847464,1775417451992,-11046.30350255,0.0001545,2]
[419847465,1775417452001,-500.0,0.0001545,2]
[419847466,1775417452010,-151.0,0.0001545,2]
[419847467,1775417452020,-150.0,0.00015451,2]
[419847468,1775417452031,-150.0,0.00015454,2]
[419847469,1775417452040,-150.0,0.00015457,2]
[419847470,1775417452049,-150.0,0.00015457,2]
[419847471,1775417452058,-350.0,0.00015466,2]
[419847472,1775417452068,-150.0,0.00015467,2]
[419847473,1775417452076,-150.0,0.00015467,2]
[419847474,1775417452086,-150.0,0.00015467,2]
[419847475,1775417452095,-150.0,0.00015467,2]
[419847476,1775417452104,-1000.0,0.00015467,2]
[419847477,1775417452113,-500.0,0.0001547,2]
[419847478,1775417452122,-7881.78734666,0.00015471,2]
[419847479,1775417452131,-28985.77,0.00015471,2]
[419847480,1775417452140,-3062.66,0.00015471,2]
[419847481,1775417452150,-9697.99,0.00015471,2]
[419847482,1775417452160,-151.0,0.00015472,2]
[419847483,1775417452169,-151.0,0.00015472,2]
[419847484,1775417452178,-150.0,0.00015473,2]
[419847485,1775417452187,-871.95012592,0.00015473,2]
[419847486,1775417452197,-150.0,0.00015475,2]
[419847487,1775417452207,-225841.21728149,0.0001548,2]
[419847488,1775417452216,-2351.0,0.00015481,2]
[419847489,1775417452226,-150.0,0.00015487,2]
[419847490,1775417452235,-150.0,0.00015487,2]
[419847491,1775417452245,-150.0,0.00015489,2]
[419847492,1775417452257,-150.0,0.00015491,2]
[419847493,1775417452267,-150.0,0.00015492,2]
[419847494,1775417452277,-150.0,0.00015498,2]
[419847495,1775417452286,-150.0,0.00015499,2]
[419847496,1775417452296,-150.0,0.000155,2]
[419847497,1775417452305,-3200.0,0.000155,2]
[419847498,1775417452316,-150.0,0.00015503,2]
[419847499,1775417452326,-11455.01673214,0.00015505,2]
[419847500,1775417452335,-500.0,0.00015505,2]
[419847501,1775417452344,-151.0,0.00015505,2]
[419847502,1775417452354,-4000.0,0.00015507,2]
[419847503,1775417452364,-150.0,0.00015511,2]
[419847504,1775417452373,-150.0,0.00015511,2]
[419847505,1775417452382,-641.22,0.00015513,2]
[419847506,1775417452391,-150.0,0.00015517,2]
[419847507,1775417452401,-150.0,0.00015517,2]
[419847508,1775417452411,-150.0,0.00015522,2]
[419847509,1775417452420,-948.1,0.00015528,2]
[419847510,1775417452430,-855.78,0.00015528,2]
[419847511,1775417452440,-500.0,0.00015528,2]
[419847512,1775417452449,-150.0,0.00015529,2]
[419847513,1775417452458,-150.0,0.00015529,2]
[419847514,1775417452467,-150.0,0.00015533,2]
[419847515,1775417452476,-150.0,0.00015535,2]
[419847516,1775417452486,-150.0,0.00015546,2]
[419847517,1775417452495,-150.0,0.00015547,2]
[419847518,1775417452504,-150.0,0.00015547,2]
[419847519,1775417452513,-1000.0,0.00015548,2]
[419847520,1775417452523,-150.0,0.00015548,2]
[419847521,1775417452532,-150.0,0.00015556,2]
[419847522,1775417452541,-150.0,0.00015559,2]
[419847523,1775417452550,-1443.46790256,0.0001556,2]
[419847524,1775417452561,-500.0,0.0001556,2]
[419847525,1775417452570,-151.0,0.0001556,2]
[419847526,1775417452579,-150.0,0.00015561,2]
[419847527,1775417452587,-441.91,0.00015563,2]
[419847528,1775417452596,-150.0,0.00015564,2]
[419847529,1775417452606,-594.86,0.00015565,2]
[419847530,1775417452616,-500.0,0.00015565,2]
[419847531,1775417452625,-500.0,0.00015565,2]
[419847532,1775417452634,-500.0,0.00015565,2]
[419847533,1775417452644,-500.0,0.00015565,2]
[419847534,1775417452653,-500.0,0.00015565,2]
[419847535,1775417452663,-586.9,0.00015565,2]
[419847536,1775417452672,-500.0,0.00015565,2]
[419847537,1775417452681,-500.0,0.00015565,2]
[419847538,1775417452690,-30172.71823857,0.00015566,2]
[419847539,1775417452699,-38174.31273053,0.00015566,2]
[419847540,1775417452709,-150.0,0.00015567,2]
[419847541,1775417452719,-150.0,0.0001557,2]
[419847542,1775417452728,-500.13152132,0.00015573,2]
[419847543,1775417452737,-164.79711181,0.00015573,2]
[419847544,1775417452746,-500.0,0.00015573,2]
[419847545,1775417452756,-500.0,0.00015573,2]
[419847546,1775417452765,-500.0,0.00015573,2]
[419847547,1775417452774,-500.0,0.00015573,2]
[419847548,1775417452784,-500.0,0.00015573,2]
[419847549,1775417452793,-500.0,0.00015573,2]
[419847550,1775417452802,-500.0,0.00015573,2]
[419847551,1775417452811,-500.0,0.00015573,2]
[419847552,1775417452821,-500.0,0.00015573,2]
[419847553,1775417452830,-163.60261744,0.00015573,2]
[419847554,1775417452839,-385.86149772,0.00015573,2]
[419847555,1775417452849,-500.0,0.00015573,2]
[419847556,1775417452858,-211.04857142,0.00015573,2]
[419847557,1775417452868,-500.0,0.00015573,2]
[419847558,1775417452877,-500.0,0.00015573,2]
[419847559,1775417452887,-500.0,0.00015573,2]
[419847560,1775417452896,-160.34417201,0.00015573,2]
[419847561,1775417452905,-500.0,0.00015573,2]
[419847562,1775417452914,-500.0,0.00015573,2]
[419847563,1775417452923,-500.0,0.00015573,2]
[419847564,1775417452932,-500.0,0.00015573,2]
[419847565,1775417452941,-500.0,0.00015573,2]
[419847566,1775417452951,-150.0,0.00015577,2]
[419847567,1775417452960,-150.0,0.00015577,2]
[419847568,1775417452969,-150.0,0.00015578,2]
[419847569,1775417452979,-150.0,0.00015586,2]
[419847570,1775417452995,-500.0,0.00015589,2]
[419847571,1775417453013,-182.78240974,0.0001559,2]
[419847572,1775417453029,-150.0,0.00015592,2]
[419847573,1775417453044,-150.0,0.00015594,2]
[419847574,1775417453060,-500.0,0.00015599,2]
[419847575,1775417453077,-584.32,0.00015599,2]
[419847576,1775417453093,-500.0,0.00015599,2]
[419847577,1775417453110,-4490.4558224,0.000156,2]
[419847578,1775417453124,-167962.0245893,0.000156,2]
[419847579,1775417453138,-2806.534889,0.000156,2]
[419847580,1775417453152,-3367.8418668,0.000156,2]
[419847581,1775417453167,-828.895384,0.000156,2]
[419847582,1775417453183,-37602.1513702,0.000156,2]
[419847583,1775417453198,-150.0,0.000156,2]
[419847584,1775417453216,-151.0,0.000156,2]
[419847585,1775417453227,-150.0,0.000156,2]
[419847586,1775417453239,-150.0,0.000156,2]
[419847587,1775417453256,-128982.3742826,0.000156,2]
[419847588,1775417453269,-151.0,0.000156,2]
[419847589,1775417453285,-151.0,0.000156,2]
[419847590,1775417453301,-151.0,0.000156,2]
[419847591,1775417453315,-150.0,0.00015605,2]
[419847592,1775417453327,-150.0,0.00015608,2]
[419847593,1775417453340,-150.0,0.00015608,2]
[419847594,1775417453353,-500.0,0.00015613,2]
[419847595,1775417453367,-150.0,0.00015614,2]
[419847596,1775417453393,-500.0,0.00015615,2]
[419847597,1775417453406,-151.0,0.00015615,2]
[419847598,1775417453420,-250.0,0.00015616,2]
[419847599,1775417453435,-155.09,0.00015616,2]
[419847600,1775417453449,-377.65175335,0.00015617,2]
[419847601,1775417453462,-150.0,0.00015618,2]
[419847602,1775417453475,-150.0,0.00015622,2]
[419847603,1775417453489,-150.0,0.00015624,2]
[419847604,1775417453502,-150.0,0.00015624,2]
[419847605,1775417453516,-240.58696,0.00015625,2]
[419847606,1775417453530,-641.22,0.00015627,2]
[419847607,1775417453544,-500.0,0.00015627,2]
[419847608,1775417453557,-500.0,0.00015627,2]
[419847609,1775417453572,-948.1,0.00015627,2]
[419847610,1775417453586,-948.1,0.00015627,2]
[419847611,1775417453602,-948.1,0.00015627,2]
[419847612,1775417453617,-948.1,0.00015627,2]
[419847613,1775417453633,-855.78,0.00015627,2]
[419847614,1775417453647,-855.78,0.00015627,2]
[419847615,1775417453661,-855.78,0.00015627,2]
[419847616,1775417453675,-855.78,0.00015627,2]
[419847617,1775417453690,-594.86,0.00015627,2]
[419847618,1775417453704,-594.86,0.00015627,2]
[419847619,1775417453718,-500.0,0.00015627,2]
[419847620,1775417453732,-500.0,0.00015627,2]
[419847621,1775417453747,-500.0,0.00015627,2]
[419847622,1775417453760,-500.0,0.00015627,2]
[419847623,1775417453775,-500.0,0.00015627,2]
[419847624,1775417453789,-500.0,0.00015627,2]
[419847625,1775417453803,-500.0,0.00015627,2]
[419847626,1775417453817,-500.0,0.00015627,2]
[419847627,1775417453831,-500.0,0.00015627,2]
[419847628,1775417453845,-500.0,0.00015627,2]
[419847629,1775417453860,-584.32,0.00015627,2]
[419847630,1775417453873,-584.32,0.00015627,2]
[419847631,1775417453887,-500.0,0.00015627,2]
[419847632,1775417453901,-500.0,0.00015627,2]
[419847633,1775417453914,-500.0,0.00015627,2]
[419847634,1775417453928,-500.0,0.00015627,2]
[419847635,1775417453941,-500.0,0.00015627,2]
[419847636,1775417453955,-500.0,0.00015627,2]
[419847637,1775417453968,-586.9,0.00015627,2]
[419847638,1775417453983,-586.9,0.00015627,2]
[419847639,1775417453997,-500.0,0.00015627,2]
[419847640,1775417454011,-500.0,0.00015627,2]
[419847641,1775417454025,-500.0,0.00015627,2]
[419847642,1775417454040,-500.0,0.00015627,2]
[419847643,1775417454055,-151.0,0.00015628,2]
[419847644,1775417454069,-1270.261854,0.00015628,2]
[419847645,1775417454082,-1270.261854,0.00015628,2]
[419847646,1775417454097,-1270.261854,0.00015628,2]
[419847647,1775417454111,-1270.261854,0.00015628,2]
[419847648,1775417454125,-652.815241,0.00015628,2]
[419847649,1775417454140,-652.815241,0.00015628,2]
[419847650,1775417454154,-652.815241,0.00015628,2]
[419847651,1775417454168,-652.815241,0.00015628,2]
[419847652,1775417454182,-539.252182,0.00015628,2]
[419847653,1775417454196,-539.252182,0.00015628,2]
[419847654,1775417454210,-539.252182,0.00015628,2]
[419847655,1775417454224,-539.252182,0.00015628,2]
[419847656,1775417454238,-151.0,0.00015628,2]
[419847657,1775417454251,-151.0,0.00015628,2]
[419847658,1775417454266,-151.0,0.00015628,2]
[419847659,1775417454280,-733.77686062,0.00015634,2]
[419847660,1775417454294,-150.0,0.00015636,2]
[419847661,1775417454309,-150.0,0.00015638,2]
[419847662,1775417454322,-150.0,0.00015638,2]
[419847663,1775417454336,-150.0,0.00015642,2]
[419847664,1775417454350,-150.0,0.00015642,2]
[419847665,1775417454366,-150.0,0.00015644,2]
[419847666,1775417454380,-2766.0,0.00015647,2]
[419847667,1775417454393,-350.0,0.00015649,2]
[419847668,1775417454407,-500.0,0.00015652,2]
[419847669,1775417454421,-584.32,0.00015652,2]
[419847670,1775417454436,-1267.843,0.00015653,2]
[419847671,1775417454451,-276.717,0.00015653,2]
[419847672,1775417454465,-1217.0,0.00015653,2]
[419847673,1775417454478,-1055.485,0.00015653,2]
[419847674,1775417454492,-634.472,0.00015653,2]
[419847675,1775417454506,-1348.652,0.00015653,2]
[419847676,1775417454520,-150.0,0.00015655,2]
[419847677,1775417454534,-150.0,0.00015661,2]
[419847678,1775417454548,-5173.0,0.00015662,2]
[419847679,1775417454561,-150.0,0.00015666,2]
[419847680,1775417454576,-150.0,0.00015667,2]
[419847681,1775417454589,-150.0,0.00015668,2]
[419847682,1775417454603,-150.0,0.00015668,2]
[419847683,1775417454616,-150.0,0.00015669,2]
[419847684,1775417454629,-350.0,0.0001567,2]
[419847685,1775417454641,-500.0,0.0001567,2]
[419847686,1775417454655,-151.0,0.0001567,2]
[419847687,1775417454669,-500.0,0.00015678,2]
[419847688,1775417454683,-500.0,0.00015679,2]
[419847689,1775417454696,-624.13,0.00015679,2]
[419847690,1775417454710,-500.0,0.00015679,2]
[419847691,1775417454723,-808.56,0.00015679,2]
[419847692,1775417454738,-500.0,0.00015679,2]
[419847693,1775417454752,-641.22,0.00015679,2]
[419847694,1775417454766,-594.86,0.00015679,2]
[419847695,1775417454780,-500.0,0.00015679,2]
[419847696,1775417454793,-500.0,0.00015679,2]
[419847697,1775417454806,-500.0,0.00015679,2]
[419847698,1775417454819,-500.0,0.00015679,2]
[419847699,1775417454832,-500.0,0.00015679,2]
[419847700,1775417454845,-586.9,0.00015679,2]
[419847701,1775417454858,-500.0,0.00015679,2]
[419847702,1775417454870,-500.0,0.00015679,2]
[419847703,1775417454883,-200.0,0.0001568,2]
[419847704,1775417454897,-150.0,0.0001568,2]
[419847705,1775417454909,-250.0,0.0001568,2]
[419847706,1775417454922,-250.0,0.0001568,2]
[419847707,1775417454936,-208.102,0.0001568,2]
[419847708,1775417454948,-250.0,0.0001568,2]
[419847709,1775417454961,-163.183,0.0001568,2]
[419847710,1775417454974,-155.122,0.0001568,2]
[419847711,1775417454986,-193.552,0.0001568,2]
[419847712,1775417454999,-166.114,0.0001568,2]
[419847713,1775417455012,-250.0,0.0001568,2]
[419847714,1775417455025,-214.923,0.0001568,2]
[419847715,1775417455038,-2218.13051349,0.0001568,2]
[419847716,1775417455052,-150.0,0.0001568,2]
[419847717,1775417455065,-1040.3393254,0.0001568,2]
[419847718,1775417455078,-1116.07085056,0.0001568,2]
[419847719,1775417455091,-1055.74331907,0.0001568,2]
[419847720,1775417455104,-1098.72489609,0.0001568,2]
[419847721,1775417455117,-1031.94282114,0.0001568,2]
[419847722,1775417455130,-1134.53832042,0.0001568,2]
[419847723,1775417455143,-1103.4923499,0.0001568,2]
[419847724,1775417455156,-1109.57278049,0.0001568,2]
[419847725,1775417455168,-1103.30070179,0.0001568,2]
[419847726,1775417455181,-1065.90643156,0.0001568,2]
[419847727,1775417455193,-1082.31591567,0.0001568,2]
[419847728,1775417455206,-1099.18940312,0.0001568,2]
[419847729,1775417455218,-1057.56149689,0.0001568,2]
[419847730,1775417455231,-1054.37528686,0.0001568,2]
[419847731,1775417455244,-1378.85591387,0.0001568,2]
[419847732,1775417455259,-150.0,0.00015686,2]
[419847733,1775417455272,-150.0,0.00015689,2]
[419847734,1775417455286,-150.0,0.0001569,2]
[419847735,1775417455299,-785.67,0.00015692,2]
[419847736,1775417455312,-150.0,0.00015698,2]
[419847737,1775417455324,-150.0,0.00015698,2]
[419847738,1775417455337,-150.0,0.00015699,2]
[419847739,1775417455350,-162.4453,0.000157,2]
[419847740,1775417455363,-150.0,0.000157,2]
[419847741,1775417455377,-2000.0,0.00015707,2]
[419847742,1775417455389,-150.0,0.00015709,2]
[419847743,1775417455404,-150.0,0.00015711,2]
[419847744,1775417455418,-150.0,0.00015713,2]
[419847745,1775417455430,-150.0,0.00015718,2]
[419847746,1775417455445,-150.0,0.00015718,2]
[419847747,1775417455457,-181.08010149,0.00015723,2]
[419847748,1775417455471,-200.0,0.00015723,2]
[419847749,1775417455485,-209.40437684,0.00015723,2]
[419847750,1775417455497,-693.3919763,0.00015723,2]
[419847751,1775417455509,-1428.38747117,0.00015723,2]
[419847752,1775417455522,-209.40437684,0.00015723,2]
[419847753,1775417455534,-290.26104003,0.00015723,2]
[419847754,1775417455548,-771.01748645,0.00015723,2]
[419847755,1775417455562,-150.0,0.00015724,2]
[419847756,1775417455573,-500.0,0.00015725,2]
[419847757,1775417455585,-151.0,0.00015725,2]
[419847758,1775417455597,-1500.0,0.00015727,2]
[419847759,1775417455609,-1500.0,0.00015727,2]
[419847760,1775417455621,-1500.0,0.00015727,2]
[419847761,1775417455633,-953.31303788,0.00015727,2]
[419847762,1775417455645,-418.3764967,0.00015727,2]
[419847763,1775417455657,-186.27125357,0.00015727,2]
[419847764,1775417455669,-1500.0,0.00015727,2]
[419847765,1775417455683,-1500.0,0.00015727,2]
[419847766,1775417455695,-1503.24663382,0.00015727,2]
[419847767,1775417455710,-1500.0,0.00015727,2]
[419847768,1775417455722,-1500.0,0.00015727,2]
[419847769,1775417455734,-1500.0,0.00015727,2]
[419847770,1775417455747,-1500.0,0.00015727,2]
[419847771,1775417455760,-1500.0,0.00015727,2]
[419847772,1775417455773,-1500.0,0.00015727,2]
[419847773,1775417455786,-1500.0,0.00015727,2]
[419847774,1775417455800,-1500.0,0.00015727,2]
[419847775,1775417455813,-150.0,0.00015728,2]
[419847776,1775417455826,-150.0,0.00015728,2]
[419847777,1775417455839,-500.0,0.00015729,2]
[419847778,1775417455850,-953.66,0.00015729,2]
[419847779,1775417455863,-827.5,0.00015729,2]
[419847780,1775417455876,-1282.44,0.00015729,2]
[419847781,1775417455889,-5888.0,0.00015731,2]
[419847782,1775417455901,-166.66,0.00015733,2]
[419847783,1775417455914,-150.0,0.00015733,2]
[419847784,1775417455926,-150.0,0.00015733,2]
[419847785,1775417455939,-150.0,0.00015736,2]
[419847786,1775417455953,-996.49996996,0.00015737,2]
[419847787,1775417455966,-150.0,0.00015737,2]
[419847788,1775417455978,-414.0,0.00015742,2]
[419847789,1775417455990,-150.0,0.00015749,2]
[419847790,1775417456002,-262.0,0.00015753,2]
[419847791,1775417456014,-5957.33,0.00015753,2]
[419847792,1775417456026,-150.0,0.00015755,2]
[419847793,1775417456039,-150.0,0.00015756,2]
[419847794,1775417456050,-2766.0,0.00015756,2]
[419847795,1775417456063,-150.0,0.00015758,2]
[419847796,1775417456074,-150.0,0.00015758,2]
[419847797,1775417456086,-150.0,0.00015761,2]
[419847798,1775417456098,-150.0,0.00015774,2]
[419847799,1775417456111,-3434.0,0.00015776,5]
[419847800,1775417456123,-2743.0,0.00015776,5]
[419847801,1775417456136,-150.0,0.00015778,2]
[419847802,1775417456148,-5173.0,0.00015778,2]
[419847803,1775417456161,-150.0,0.00015779,2]
[419847804,1775417456173,-150.0,0.0001578,2]
[419847805,1775417456186,-500.0,0.0001578,2]
[419847806,1775417456198,-151.0,0.0001578,2]
[419847807,1775417456211,-150.0,0.00015782,2]
[419847808,1775417456222,-150.0,0.00015785,2]
[419847809,1775417456234,-5888.0,0.00015787,2]
[419847810,1775417456246,-150.0,0.00015789,2]
[419847811,1775417456259,-150.0,0.00015789,2]
[419847812,1775417456270,-150.0,0.00015793,2]